Cogmind - Beta 16.1 @@@ ROGUE MODE // 2026.06.21 @ 16:37:50 Player: MISA Result: Destroyed by G-47 Trooper with Particle Gun Performance ------------- Evolutions (2) 1000 Regions Visited (5) 1000 Robots Destroyed (10) 50 Value Destroyed (251) 251 Prototype IDs (0) 0 Alien Tech Used (0) 0 Bonus (300) 300 TOTAL SCORE: 2601 Bonus ------- Aligned with FarCom 300 Cogmind --------- Core Integrity 0/550 Matter 300/300 Energy 100/100 System Corruption 0% Temperature Cool (9) Movement Core (700) Ox13 Location -8/Materials Parts ------- > --- POWER (2) -------- (None) > --- PROPULSION (2) --- (None) > --- UTILITY (3) ------ High-capacity Storage Unit > --- WEAPON (4) ------- (None) > --- INVENTORY (20) --- Reinforced Deuterium Engine High-capacity Matter Pod (96) Hacking Suite Datajack Peak State ------------ > --- POWER ------------ Ion Engine > --- PROPULSION ------- Light Treads Light Treads > --- UTILITY ---------- High-capacity Storage Unit Structural Scanner > --- WEAPON ----------- EM Pulse Gun Beam Cannon Light Assault Rifle High-powered Shotgun > --- INVENTORY -------- Light Ion Engine Reinforced Deuterium Engine High-capacity Matter Pod Hacking Suite Datajack [Rating: 12] Favorites ----------- Power Ion Engine Engine Ion Engine Propulsion Light Treads Treads Light Treads Leg Aluminum Leg Utility Structural Scanner Device Structural Scanner Storage High-capacity Storage Unit Weapon EM Pulse Gun Energy Gun EM Pulse Gun Energy Cannon Beam Cannon Ballistic Gun Light Assault Rifle Build | -11 -10 -10 -10 -9 -8 ------- Run | Yrd Mat Min Exi Min Mat Slots Evolved 4 | . . . . . 4 Power 1 | . . . . . 1 Propulsion . | . . . . . . Utility 1 | . . . . . 1 Weapon 2 | . . . . . 2 Parts Attached 12 | 6 1 1 1 . 3 Power 1 | 1 . . . . . Engine 1 | 1 . . . . . Core . | . . . . . . Reactor . | . . . . . . Propulsion 3 | 2 . . . . 1 Treads 2 | 2 . . . . . Leg 1 | . . . . . 1 Wheel . | . . . . . . Hover . | . . . . . . Flight . | . . . . . . Utility 3 | 1 1 . 1 . . Device 1 | . 1 . . . . Storage 2 | 1 . . 1 . . Processor . | . . . . . . Hackware . | . . . . . . Protection . | . . . . . . Artifact . | . . . . . . Weapon 5 | 2 . 1 . . 2 Energy Gun 2 | 2 . . . . . Energy Cannon 1 | . . . . . 1 Ballistic Gun 2 | . . 1 . . 1 Ballistic Cannon . | . . . . . . Launcher . | . . . . . . Special Weapon . | . . . . . . Impact Weapon . | . . . . . . Slashing Weapon . | . . . . . . Piercing Weapon . | . . . . . . Special Melee Weapon . | . . . . . . Unidentified Prototypes . | . . . . . . Parts Lost 9 | . . . . . 9 Power 1 | . . . . . 1 Propulsion 2 | . . . . . 2 Utility 1 | . . . . . 1 Weapon 5 | . . . . . 5 Highest Loss Streak 3 | . . . . . 3 To Critical Strikes . | . . . . . . Average Backups 4 | . 1 5 5 6 4 Power 1 | . . . 1 2 1 Propulsion . | . . . . . . Utility 1 | . . 1 . 1 1 Weapon 1 | . . 1 1 2 . Tool/Special . | . . . . . . Unused Backups 7 | . 1 1 . . 5 Power 3 | . 1 . . . 2 Propulsion . | . . . . . . Utility 3 | . . 1 . . 2 Weapon . | . . . . . . Tool/Special 1 | . . . . . 1 Average Slot Usage (%) 90 | . 91 100 99 100 50 Engine 12 | . 14 14 14 14 4 Treads 25 | . 28 28 28 28 9 Device 11 | . 6 14 14 14 8 Storage 13 | . 14 14 13 14 9 Energy Gun 15 | . 28 22 14 14 4 Ballistic Gun 10 | . . 5 14 14 8 Peak Build Rating 12 | 6 7 7 8 7 12 Average Rating 6 | 4 6 6 6 7 7 On Entrance 5 | . 6 7 7 7 7 Avg Prop Armor Cover (%) . | . . . . . . Naked Turns . | . . . . . . Heaviest Build 54 | 14 15 15 49 49 54 Greatest Support 40 | 40 40 40 40 40 40 Greatest Overweight (x) 13 | . . . 1 1 13 Average Overweight (x) . | . . . . 1 2 Largest Inventory Capacity 20 | 8 8 8 20 20 20 Average Capacity 15 | 6 8 8 16 20 20 Most Carried 7 | 2 4 7 7 6 6 Average Carried 4 | . 1 5 5 6 4 Final Capacity 20 | 8 8 8 20 20 20 Final Carried 6 | . 4 5 6 6 4 Class Distribution -------------------- 95% | Mutant 4% | Skirmisher Dominant Class ---------------- Mutant | -10/Materials Mutant | -10/Mines Mutant | -10/Exiles Mutant | -9/Mines Mutant | -8/Materials Resources | -11 -10 -10 -10 -9 -8 ----------- Run | Yrd Mat Min Exi Min Mat Matter Collected 417 | 249 11 16 6 . 135 Remotely . | . . . . . . Salvage Created 300 | . 54 41 . . 205 Parts 19 | . 7 7 . . 5 Haulers Intercepted . | . . . . . . Recyclers Shooed . | . . . . . . Parts Field Recycled . | . . . . . . Retrieved Matter . | . . . . . . Parts Self-Destructed . | . . . . . . Prevented . | . . . . . . Parts Restored . | . . . . . . Kills | -11 -10 -10 -10 -9 -8 ------- Run | Yrd Mat Min Exi Min Mat Combat Hostiles Destroyed 10 | . 3 3 . . 4 Guns 8 | . 3 2 . . 3 Cannons 1 | . . . . . 1 AOE 1 | . . 1 . . . Classes Destroyed 2 | . 1 . . . 1 Swarmer 6 | . 3 3 . . . Grunt 4 | . . . . . 4 Best Kill Streak 3 | . 3 3 . . 2 Combat Bots Only 3 | . 3 3 . . 2 Max Kills in Single Turn 2 | . 2 2 . . 1 Gunslinging . | . . . . . . Exploded 1 | . . 1 . . . Melee . | . . . . . . Uniques/NPCs Destroyed . | . . . . . . Combat | -11 -10 -10 -10 -9 -8 -------- Run | Yrd Mat Min Exi Min Mat Hostile Shots Fired 141 | . 7 5 . . 129 Missed 31 | . 1 1 . . 29 Hits 110 | . 6 4 . . 100 Projectile 110 | . 6 4 . . 100 Critical Strikes 4 | . . . . . 4 Damage Taken 1763 | . 161 29 . . 1573 Core 675 | . 94 16 . . 565 Absorbed by Shields . | . . . . . . Core Remaining (%) 78 | 100 . . . 56 . Volleys Fired 33 | . 4 4 . . 25 Largest 4 | . 2 2 . . 4 Hottest 160 | . 80 80 . . 160 Shots Fired 65 | . 8 8 . . 49 Gun 46 | . 8 8 . . 30 Cannon 19 | . . . . . 19 Launcher . | . . . . . . Special . | . . . . . . Kinetic 22 | . . . . . 22 Thermal 19 | . . . . . 19 Explosive . | . . . . . . Electromagnetic 24 | . 8 8 . . 8 Robot Hit Streak 5 | . 1 3 . . 5 Robot Miss Streak 5 | . 2 4 . . 5 Penetration Max . | . . . . . . Secondary Targets 1 | . . 1 . . . Max Gunslinging Chain 1 | . . 1 . . . Shots Hit Robots 39 | . 3 3 . . 33 Core Hits 20 | . 3 3 . . 14 Critical Kills . | . . . . . . Critical Parts Destroyed . | . . . . . . Critical Strikes . | . . . . . . Melee Attacks . | . . . . . . Impact . | . . . . . . Slashing . | . . . . . . Piercing . | . . . . . . Sneak Attacks . | . . . . . . Combat Hostiles . | . . . . . . Follow-up Attacks . | . . . . . . Damage Inflicted 645 | . 50 74 . . 521 Guns 397 | . 50 35 . . 312 Cannons 204 | . . . . . 204 Explosions 39 | . . 39 . . . Melee . | . . . . . . Ramming 5 | . . . . . 5 Kinetic 220 | . . . . . 220 Thermal 243 | . . 39 . . 204 Explosive . | . . . . . . Electromagnetic 177 | . 50 35 . . 92 Impact . | . . . . . . Slashing . | . . . . . . Piercing . | . . . . . . Highest Corruption . | . . . . . . Average Corruption . | . . . . . . Corruption Purged . | . . . . . . Corruption Blocked . | . . . . . . Overload Shots . | . . . . . . Overflow Damage . | . . . . . . Projectiles . | . . . . . . Explosions . | . . . . . . Melee . | . . . . . . Knockbacks . | . . . . . . Impact . | . . . . . . Kinetic . | . . . . . . Secondary . | . . . . . . Self-Inflicted Damage 1 | . . . . . 1 Shots . | . . . . . . Rammed 4 | . . . . . 4 Targets Rammed 8 | . . . . . 8 Kicked 4 | . . . . . 4 Crushed . | . . . . . . Highest Temperature 390 | . 72 36 . . 390 Average Temperature 127 | . 38 20 . . 162 Received Heat Transfer 972 | . . . . . 972 Effects 2 | . . . . . 2 Shutdowns 1 | . . . . . 1 Interference 1 | . . . . . 1 Siege Activations . | . . . . . . Martial Activations . | . . . . . . Shielding Activations . | . . . . . . Robots Disrupted . | . . . . . . Combat Hostiles . | . . . . . . Robots Corrupted . | . . . . . . Combat Hostiles . | . . . . . . Parts Fried . | . . . . . . Impact Corruptions . | . . . . . . Robots Melted . | . . . . . . Combat Hostiles . | . . . . . . Parts Melted . | . . . . . . Heat Transferred 444 | . . . . . 444 Parts Sabotaged . | . . . . . . Parts Stolen . | . . . . . . Parts Stripped . | . . . . . . Power Chain Reactions 1 | . . 1 . . . Alert | -11 -10 -10 -10 -9 -8 ------- Run | Yrd Mat Min Exi Min Mat Maximum Alert Level . | . . . . . . Low Security (%) 100 | 100 100 100 . 100 100 Level 1 . | . . . . . . Level 2 . | . . . . . . Level 3 . | . . . . . . Level 4 . | . . . . . . Level 5 . | . . . . . . High Security . | . . . . . . Max Security . | . . . . . . Peak Influence 75 | . 70 75 . . 50 Initial . | . . . . . . Average 11 | . 9 46 . . 11 Influence Increases 286 | . 76 75 . . 135 Destroy 0b10 Robot/C 200 | . 60 60 . . 80 Destroy Leader 30 | . 10 10 . . 10 Successful Hack 6 | . 6 . . . . Destroy Structure 5 | . . 5 . . . Lose Combat Pursuer 45 | . . . . . 45 Influence Decreases 286 | . 76 60 15 . 135 Entered New Map 15 | . . . 15 . . Time Decay 226 | . 76 60 . . 90 Lost Part 45 | . . . . . 45 Squads Dispatched 2 | . 1 . . . 1 Investigation . | . . . . . . Extermination . | . . . . . . Reinforcement 2 | . 1 . . . 1 Assault . | . . . . . . Garrison . | . . . . . . Intercept . | . . . . . . Searches Triggered . | . . . . . . Construction Impeded . | . . . . . . Haulers Reinforced . | . . . . . . Active Scanning Responses . | . . . . . . Cargo Convoy Interrupts . | . . . . . . Stealth | -11 -10 -10 -10 -9 -8 --------- Run | Yrd Mat Min Exi Min Mat Distress Signals . | . . . . . . Communications Jammed . | . . . . . . Distress Signals . | . . . . . . Times Spotted 17 | . 5 1 . . 11 Peak Tracking Total 4 | . 3 1 . . 4 Tactical Retreats 2 | . . . . . 2 Traps | -11 -10 -10 -10 -9 -8 ------- Run | Yrd Mat Min Exi Min Mat Traps Triggered 3 | . 3 . . . . Indirectly . | . . . . . . Trap Hack Attempts . | . . . . . . Triggered . | . . . . . . Disarmed . | . . . . . . Reprogrammed . | . . . . . . Reused . | . . . . . . Traps Extracted . | . . . . . . Installed . | . . . . . . Triggered . | . . . . . . Machines | -11 -10 -10 -10 -9 -8 ---------- Run | Yrd Mat Min Exi Min Mat Machines Disabled . | . . . . . . Max in Single Turn . | . . . . . . Machines Repaired . | . . . . . . Machines Dismantled . | . . . . . . Machines Sabotaged . | . . . . . . Overloaded Fab Kills . | . . . . . . Hacking | -11 -10 -10 -10 -9 -8 --------- Run | Yrd Mat Min Exi Min Mat Machines Accessed 4 | . 2 . 2 . . Terminals 2 | . 2 . . . . Fabricators . | . . . . . . Repair Stations . | . . . . . . Recycling Units . | . . . . . . Scanalyzers . | . . . . . . Garrison Access . | . . . . . . Total Hacks 36 | . 4 . 32 . . Successful 35 | . 3 . 32 . . Failed 1 | . 1 . . . . Catastrophic . | . . . . . . Database Lockouts . | . . . . . . Manual . | . . . . . . Terminals 4 | . 4 . . . . Fabricators . | . . . . . . Repair Stations . | . . . . . . Recycling Units . | . . . . . . Scanalyzers . | . . . . . . Garrison Access . | . . . . . . Terminal Hacks 35 | . 3 . 32 . . Record 34 | . 2 . 32 . . Robot Analysis 1 | . 1 . . . . Fabricator Hacks . | . . . . . . Repair Station Hacks . | . . . . . . Recycling Unit Hacks . | . . . . . . Scanalyzer . | . . . . . . Garrison Access Hacks . | . . . . . . Unauthorized Hacks . | . . . . . . Terminals . | . . . . . . Fabricators . | . . . . . . Repair Stations . | . . . . . . Recycling Units . | . . . . . . Scanalyzers . | . . . . . . Garrison Access . | . . . . . . Data Cores Recovered 1 | . 1 . . . . Used . | . . . . . . Hacking Detections 1 | . 1 . . . . Full Trace Events . | . . . . . . Feedback Events . | . . . . . . Feedback Blocked . | . . . . . . Robot Schematics Acquired . | . . . . . . Robots Built . | . . . . . . Authchips . | . . . . . . Time . | . . . . . . Total Robot Build Rating . | . . . . . . Part Schematics Acquired . | . . . . . . Parts Built . | . . . . . . Authchips . | . . . . . . Time . | . . . . . . Total Part Build Rating . | . . . . . . Part Studies Acquired . | . . . . . . Parts Repaired . | . . . . . . Time . | . . . . . . Parts Recycled . | . . . . . . Recycled Matter . | . . . . . . Retrieved Matter . | . . . . . . Retrieved Components . | . . . . . . Parts Scanalyzed . | . . . . . . Part Schematics Acquired . | . . . . . . Parts Damaged . | . . . . . . Bothacking | -11 -10 -10 -10 -9 -8 ------------ Run | Yrd Mat Min Exi Min Mat Used RIF Installer . | . . . . . . Robots Hacked . | . . . . . . Non-combat . | . . . . . . Combat . | . . . . . . Robot Hacks Applied . | . . . . . . Relay Couplers Released . | . . . . . . Fabnet Peak Effective % . | . . . . . . Robots Rewired . | . . . . . . Allies Hacked . | . . . . . . Hacks Repelled . | . . . . . . Allies | -11 -10 -10 -10 -9 -8 -------- Run | Yrd Mat Min Exi Min Mat Total Allies . | . . . . . . Largest Group . | . . . . . . Highest-Rated Group . | . . . . . . Highest-Rated Ally . | . . . . . . Total Orders . | . . . . . . Ally Attacks . | . . . . . . Total Damage . | . . . . . . Kills . | . . . . . . Allies Corrupted . | . . . . . . Allies Melted . | . . . . . . Intel | -11 -10 -10 -10 -9 -8 ------- Run | Yrd Mat Min Exi Min Mat Active Infowar (turns) 2477 | . 233 122 1497 228 397 Structural 2477 | . 233 122 1497 228 397 Robot Analysis Total 1 | . 1 . . . . Derelict Logs Recovered 1 | . . 1 . . . Drone Launches . | . . . . . . Drone Recoveries . | . . . . . . Exploration | -11 -10 -10 -10 -9 -8 ------------- Run | Yrd Mat Min Exi Min Mat Turns Passed 2861 | 74 511 122 1497 228 429 Spaces Moved 1291 | 41 289 67 711 88 95 Core 5 | 3 . . . . 2 Treads 1258 | 38 289 67 711 88 65 Legs 28 | . . . . . 28 Wheels . | . . . . . . Hover . | . . . . . . Flight . | . . . . . . Fastest Speed 50 | 50 160 160 160 240 240 Average Speed 202 | 151 160 160 208 240 306 Slowest Speed 700 | 160 160 160 240 240 700 Overloaded Moves . | . . . . . . Propulsion Burnouts . | . . . . . . Robots Hopped . | . . . . . . Potential Cave-ins . | . . . . . . Cave-ins Triggered . | . . . . . . Exploration Rate (%) 34 | 3 54 29 91 23 8 Regions Visited 5 Branch Regions 3 Pre-discovered Areas 2 | . . . 1 1 . Known Exits Taken . | . . . . . . Unknown Exits Taken 5 | 1 1 1 1 1 . Scrap Searched . | . . . . . . Spaces Dug . | . . . . . . Terrain Destroyed 5 | . . 5 . . . Melee . | . . . . . . Projectile . | . . . . . . AOE 5 | . . 5 . . . Terrain Rammed . | . . . . . . Walls Destroyed . | . . . . . . Machines Disabled . | . . . . . . Actions | -11 -10 -10 -10 -9 -8 --------- Run | Yrd Mat Min Exi Min Mat Total 1456 | 53 330 75 730 106 162 Wait 74 | 1 30 . . 19 24 Move 1286 | 40 288 66 710 87 95 Hop . | . . . . . . Pick Up 27 | 6 6 2 10 . 3 Fast Attach . | . . . . . . Attach 13 | 6 1 1 1 . 4 Detach 2 | . . 1 . . 1 Swap . | . . . . . . Drop 11 | . 1 1 7 . 2 Fire 33 | . 4 4 . . 25 Melee . | . . . . . . Ram 4 | . . . . . 4 Kick 4 | . . . . . 4 Crush . | . . . . . . Escape Stasis . | . . . . . . Rewire 2 | . . . 2 . . Trap . | . . . . . . Miscellaneous . | . . . . . . Route ------- -11/Scrapyard -10/Materials (discovered 2 exits: [*Mat] / [*Min]) -10/Mines -10/Exiles (discovered 2 exits: [*Min x2]) -9/Mines -8/Materials History --------- Turn | Location | Event 10 | -11/Scrapyard | Discovered new exit (range 16) 75 | -11/Scrapyard | Entered Materials 76 | -10/Materials | Met a group of wandering Federalists 305 | -10/Materials | Build established: Mutant 454 | -10/Materials | Discovered new exit (range 7) 527 | -10/Materials | Discovered new exit (range 10) 586 | -10/Materials | Entered Mines 682 | -10/Mines | Learned Materials emergency access door positions 700 | -10/Mines | Deemed a non-threat by the Exiles lab entrance 700 | -10/Mines | Discovered new exit (range 6) 708 | -10/Mines | Entered Exiles 753 | -10/Exiles | Met 8R-AWN 773 | -10/Exiles | Met EX-HEX 839 | -10/Exiles | Met EX-DEC 898 | -10/Exiles | Visited The Gauntlet 1097 | -10/Exiles | Learned location of Zion (-7) 1236 | -10/Exiles | Discovered new exit (range 14) 1457 | -10/Exiles | Met EX-BIN 1689 | -10/Exiles | Aligned with FarCom system 1692 | -10/Exiles | Given EX-Vault access code 1903 | -10/Exiles | Discovered new exit (range 15) 2205 | -10/Exiles | Entered Mines 2395 | -9/Mines | Discovered new exit (range 8) 2401 | -9/Mines | Learned location of Storage (-7) 2433 | -9/Mines | Entered Materials 2433 | -8/Materials | Evolved 4 slots: Power x1, Utility x1, Weapon x2 2671 | -8/Materials | Lost 3 parts (1p1n1w) 2821 | -8/Materials | Core integrity fell below 50% 2843 | -8/Materials | Core integrity fell below 20% 2861 | -8/Materials | Lost 3 parts (1n1u1w) 2862 | -8/Materials | Destroyed by G-47 Trooper with Particle Gun Last Messages --------------- 02680_ R-06 Scavenger collects Aluminum Leg. 02681_ K-01 Serf collects debris. 02685_ R-06 Scavenger collects Lgt. Ion Engine. 02689_ K-01 Serf collects debris. 02691_ R-06 Scavenger collects Lgt. Treads. 02696_ K-01 Serf collects debris. 02733_ Acquired 41 matter. 02753_ Acquired 45 matter. 02775_ Critical hit (Burn: +37). 02805_ Kicked G-47 Trooper. 02809_ Hpw. Shotgun destroyed. 02809_ Kicked G-47 Trooper out of the way. 02813_ Kicked G-47 Trooper. 02818_ Aluminum Leg destroyed. 02821_ Slammed into G-47 Trooper. 02821_ Destabilizing: Core damaged (-22). 02830_ Structural Scanner destroyed. 02842_ Slammed into G-47 Trooper. 02852_ Critical hit (Burn: +37). 02856_ Slammed into G-47 Trooper. Map ----- +----------------------------------------------------+ | ?????????????????????????????????????????????????? | | ?????????????????????????????????????????????????? | | ?????????????????????????????????????????????????? | | ?????????????????????????????????????????????????? | | ?????????????????????????????????????????????????? | | ??????????????????????? ?????????????????????? | | ???######################+##?????????????????????? | | ???##################### ?????????????????????? | | ??? # """ # ?????????????????????? | | ???? "#= "" # ##?????????????????????? | | ???? "%+% """ # ##?????????????????????? | | ??????????"#! + ## ????????????????????? | | ?????????? # "Y" # ## ????????????????????? | | ?????????? # """ # + ??????Y?????????????? | | # # ##?????????????????????? | | ################+####### ##?????????????????????? | | # ! #### ##?????????????????????? | | #! "" + ##?????????????????????? | | ?? # "" #### ##?????????????????????? | | ????????## + T" #### ###########????????????? | | ???????? # # ! "" #### ###########????????????? | | ???????? # # #### # ##????????????? | | ???????? # ########### # ##????????????? | | ???????? ########## + ##????????????? | | ??## ??? ########## g# ##????????????? | | ??## ########## @# ##????????????? | | ??##! + g ##????????????? | | ??######################### ##????????????? | | ?????###################### ##????????????? | | ?????????????????????????## ##????????????? | | ?????????????????????????############????????????? | | ??????????????????????????###########????????????? | | ?????????????????????????????????????????????????? | | | | | | | | | | | | | | | | | | | | | | | | | | | | | | | | | | | +----------------------------------------------------+ Best States ------------- Heat Dissipation 31 Energy Generation 10 Energy Capacity 250 Matter Stores 300 Matter Capacity 300 Sight Range 16 Terrain Scan Density 10 Evasion (%) 40 Recoil Reduction 2 Item Schematics ----------------- None Robot Schematics ------------------ None Fabricated ------------ Nothing Repaired ---------- Nothing Studied --------- None Alien Tech Used ----------------- None Achievements -------------- Ghost 'Em Librarian Sixth Sense Challenges ------------ None Game ------ Seed ComponentPlexusDeconstructor Manual? 0 Play Time 00:32:45 Cumulative 3.6 hours Start 2026.06.21 @ 16:01:55 End 2026.06.21 @ 16:37:50 Sessions 1 Manual Loads 0 Difficulty Rogue Special Mode None Game No. 8 Rogue 8 Adventurer 0 Explorer 0 Win Type - Total 0 Types 0/0/0/0/0/0/0/0/0/0 Lore% 4 Gallery% 7 Achievement% 6 Wizard Run 0 Options --------- Layout 2 ASCII 0 Keyboard 1 Movement Vi Keybinds 0 Fullscreen 1 Font 18/SmallcapsGlow Map View 50x49 Zoom Use 0% Tactical HUD 1 Map Filters NONE Filters NONE Steam 1 RUN: 5054b2f8-c34e-4e20-b999-ae6e3d8951f6